fUST/lending_fUST_20241030
["ID","MTS","AMOUNT","RATE_DAILY","PERIOD"]
[341030160,1730287838930,-1000.0,0.00032852,2]
[341030161,1730287838942,-1000.0,0.00032852,5]
[341030162,1730287838952,-1000.0,0.00032852,5]
[341030163,1730287838962,-500.0,0.00032876,2]
[341030164,1730287838973,-167.37146184,0.00032877,2]
[341030165,1730287838987,-265.445893,0.00032877,120]
[341030166,1730287838999,-338.0,0.00032989,2]
[341030167,1730287839013,-1192.51,0.00032999,2]
[341030168,1730287839024,-5000.0,0.00032999,2]
[341030169,1730287839037,-5000.0,0.00033,3]
[341030170,1730287839049,-500.0,0.00033,120]
[341030171,1730287839063,-161.0,0.00033,2]
[341030172,1730287839073,-729.45680107,0.00033129,2]
[341030173,1730287839084,-500.0,0.00033291,5]
[341030174,1730287839095,-432.83863454,0.00033291,5]
[341030175,1730287839107,-500.0,0.00033291,5]
[341030176,1730287839118,-151.0,0.0003337,120]
[341030177,1730287839130,-161.331296,0.00033396,2]
[341030178,1730287839140,-1145.0,0.00033461,2]
[341030179,1730287839151,-154.587,0.00033461,2]
[341030180,1730287839163,-183.686,0.00033461,2]
[341030181,1730287839175,-528.0,0.00033461,2]
[341030182,1730287839186,-153.12949042,0.000335,14]
[341030183,1730287839198,-150.0,0.00033506,120]
[341030184,1730287839208,-486.237839,0.00033584,2]
[341030185,1730287839221,-1192.51,0.00033999,2]
[341030186,1730287839232,-5000.0,0.00033999,2]
[341030187,1730287839244,-5000.0,0.00034,4]
[341030188,1730287839255,-500.0,0.00034,120]
[341030189,1730287839267,-4004.97122171,0.00034,2]
[341030190,1730287839279,-486.237839,0.00034004,2]
[341030191,1730287839291,-500.0,0.00034246,7]
[341030192,1730287839305,-150.0,0.00034257,14]
[341030193,1730287839315,-150.0,0.00034257,14]
[341030194,1730287839324,-200.0,0.00034257,14]
[341030195,1730287839335,-255.47322043,0.00034257,30]
[341030196,1730287839347,-3009.78446676,0.00034257,30]
[341030197,1730287839357,-200.0,0.00034257,2]
[341030198,1730287839369,-300.0,0.000343,120]
[341030199,1730287839380,-486.237839,0.00034424,2]
[341030200,1730287839391,-1192.51,0.00034472,2]
[341030201,1730287839402,-151.0,0.00034493,120]
[341030202,1730287839413,-530.97968337,0.00034499,2]
[341030203,1730287839426,-161.0,0.00034521,2]
[341030204,1730287839437,-5000.0,0.00034729,2]
[341030205,1730287839448,-942.35,0.0003473,30]
[341030206,1730287839460,-1000.0,0.0003473,30]
[341030207,1730287839472,-1000.0,0.0003473,30]
[341030208,1730287839484,-1000.0,0.0003473,30]
[341030209,1730287839495,-1000.0,0.0003473,30]
[341030210,1730287839507,-1000.0,0.0003473,30]
[341030211,1730287839517,-486.237839,0.00034844,2]
[341030212,1730287839527,-428.58,0.000349,7]
[341030213,1730287839538,-1192.51,0.00034998,2]
[341030214,1730287839548,-1192.51,0.00034999,2]
[341030215,1730287839558,-5000.0,0.00034999,2]
[341030216,1730287839568,-5000.0,0.00034999,2]
[341030217,1730287839578,-281.18212752,0.00035,120]
[341030218,1730287839588,-5000.0,0.00035,5]
[341030219,1730287839600,-500.0,0.00035,120]
[341030220,1730287839612,-22052.94063274,0.00035,30]
[341030221,1730287839632,-3587.77063112,0.00035,30]
[341030222,1730287839644,-333.0,0.00035188,2]
[341030223,1730287839654,-486.237839,0.00035263,2]
[341030224,1730287839664,-729.45680107,0.00035265,2]
[341030225,1730287839674,-1192.51,0.00035441,2]
[341030226,1730287839687,-156.764059,0.000355,15]
[341030227,1730287839697,-500.0,0.00035616,120]
[341030228,1730287839708,-500.0,0.00035616,120]
[341030229,1730287839718,-500.0,0.00035616,12]
[341030230,1730287839730,-1000.0,0.00035616,120]
[341030231,1730287839741,-151.0,0.00035616,120]
[341030232,1730287839751,-4536.25618641,0.0003577,2]
[341030233,1730287839762,-5000.0,0.00035882,2]
[341030234,1730287839773,-1000.0,0.0003589,120]
[341030235,1730287839783,-5000.0,0.00036,6]
[341030236,1730287839793,-500.0,0.00036,120]
[341030237,1730287839804,-150.112233,0.00036,16]
[341030238,1730287839815,-1000.0,0.00036164,120]
[341030239,1730287839826,-150.0,0.00036362,120]
[341030240,1730287839836,-1192.51,0.00036437,2]
[341030241,1730287839847,-1000.0,0.00036438,120]
[341030242,1730287839857,-1192.51,0.00036499,2]
[341030243,1730287839868,-1192.51,0.00036499,2]
[341030244,1730287839878,-1192.51,0.00036499,2]
[341030245,1730287839889,-1192.51,0.00036499,2]
[341030246,1730287839899,-150.112233,0.000365,12]
[341030247,1730287839910,-157.599,0.00036565,120]
[341030248,1730287839921,-1192.51,0.00036599,2]
[341030249,1730287839931,-781.3878167,0.000366,30]
[341030250,1730287839942,-153.6088548,0.00036685,2]
[341030251,1730287839952,-302.3607475,0.00036685,2]
[341030252,1730287839964,-302.8704018,0.00036685,2]
[341030253,1730287839976,-5039.46016907,0.00036693,60]
[341030254,1730287839987,-1000.0,0.00036712,120]
[341030255,1730287839997,-151.0,0.0003674,120]
[341030256,1730287840007,-5000.0,0.00036899,2]
[341030257,1730287840018,-5000.0,0.00036899,2]
[341030258,1730287840029,-5000.0,0.00036899,2]
[341030259,1730287840040,-5000.0,0.00036899,2]
[341030260,1730287840051,-5000.0,0.00036899,2]
[341030261,1730287840062,-5000.0,0.00036899,2]
[341030262,1730287840073,-2542.7690428,0.00036899,2]
[341030263,1730287840084,-88888.0,0.000369,3]
[341030265,1730287840094,-530.97968337,0.000369,2]
[341030266,1730287840104,-4344.83996985,0.0003694,61]
[341030267,1730287840113,-307.9090181,0.00036959,2]
[341030268,1730287840123,-1000.0,0.00036979,5]
[341030270,1730287840132,-151.35090247,0.00036979,5]
[341030271,1730287840141,-1000.0,0.00036979,5]
[341030272,1730287840151,-500.0,0.00036986,60]
[341030273,1730287840161,-500.0,0.00036986,17]
[341030274,1730287840171,-1000.0,0.00036986,120]
[341030275,1730287840181,-1192.51,0.00036998,2]
[341030278,1730287840281,-1192.51,0.00036999,2]
[341030279,1730287840318,-177.97757044,0.00037,3]
[341030280,1730287840328,-14810.24,0.00037,120]
[341030281,1730287840337,-300.0,0.00037,120]
[341030282,1730287840347,-200.33181949,0.00037,120]
[341030283,1730287840356,-20000.0,0.00037,30]
[341030284,1730287840366,-58604.39233616,0.00037,5]
[341030285,1730287840411,-439.9900065,0.00027373,2]
[341030296,1730287843356,-60.0099935,0.00027373,2]
[341030297,1730287843366,-508.74857198,0.00027397,5]
[341030298,1730287843377,-208.25,0.0003,14]
[341030299,1730287843386,-294.7937914,0.00032852,5]
[341030326,1730287846350,-167.14537924,0.00027297,2]
[341030328,1730287846360,-509.24907152,0.00027397,5]
[341030330,1730287846369,-150.01,0.00032851,2]
[341030332,1730287846379,-1250.89112919,0.00032851,2]
[341030334,1730287846389,-705.2062086,0.00032852,5]
[341030336,1730287846399,-208.25,0.000333,30]
[341030338,1730287846409,-208.25,0.000357,30]
[341030340,1730287846419,-1125.43,0.0003699,10]
[341030342,1730287846428,-91.2095482,0.00037,5]
[341030345,1730287846440,-7000.0,0.00037,5]
[341032422,1730287925625,216.9769174,0.00013973,2]
[341032425,1730288419482,163.328232,0.00013973,2]
[341032428,1730288795135,-163.328232,0.00021661,2]
[341032429,1730288795158,-698.91278083,0.00024,2]
[341032430,1730288795181,-166.666666,0.00025238,2]
[341032431,1730288795205,-190.7694024,0.00025686,2]
[341032432,1730288795228,-160.6090087,0.00025901,2]
[341032433,1730288795250,-166.24896941,0.00027296,2]
[341032434,1730288795273,-3674.30710016,0.00027313,2]
[341032435,1730288795296,-300.0,0.00027396,2]
[341032436,1730288795320,-300.0,0.00027396,2]
[341032437,1730288795342,-512.14166848,0.00027397,5]
[341032438,1730288795364,-502.85738832,0.00027397,5]
[341032439,1730288795385,-305.83124494,0.00027397,5]
[341032440,1730288795409,-521.59668114,0.00027397,5]
[341032441,1730288795430,-188.84977343,0.00027397,5]
[341032442,1730288818359,10000.0,0.00024,60]
[341032443,1730288828016,10000.0,0.0002,90]
[341032444,1730288836094,10000.0,0.0002042,120]
[341032445,1730288846739,10000.0,0.00024,60]
[341032446,1730288854163,10000.0,0.0002042,120]
[341032447,1730288956474,205.06170706,0.00020113,2]
[341032448,1730288961968,200.914403,0.00013973,2]
[341032450,1730288970831,101989.6732036,0.0001,2]
[341032471,1730289032657,-17132.93607152,0.00026264,2]
[341032485,1730289038532,-135.48362548,0.00026264,2]
[341032486,1730289038542,-244.04804922,0.00027397,5]
[341032487,1730289038554,-471.77464326,0.00027397,5]
[341032500,1730289044411,-28.22535674,0.00027397,5]
[341032501,1730289044420,-505.64006121,0.00027397,5]
[341032502,1730289044430,-338.59223936,0.00027397,2]
[341032507,1730289046671,-161.40776064,0.00027397,2]
[341032508,1730289046681,-500.0,0.00027397,2]
[341032509,1730289046691,-19.55187391,0.00027397,2]
[341032514,1730289480515,165.677366,0.00013973,2]
[341032519,1730290012509,185.363776,0.00013973,2]
[341032537,1730290236051,-165.677366,0.00022174,2]
[341032538,1730290236062,-260.98079712,0.00025027,2]
[341032547,1730290238698,-524.22725588,0.00025027,2]
[341032548,1730290238708,-1169.7234015,0.00025051,2]
[341032549,1730290238718,-24900.0,0.00025653,2]
[341032550,1730290238729,-250.0,0.00025718,2]
[341032551,1730290238740,-166.666666,0.00025817,2]
[341032552,1730290238750,-167.851235,0.00026097,2]
[341032553,1730290238760,-3321.4838209,0.00026303,2]
[341032554,1730290238769,-169.238879,0.00026491,2]
[341032555,1730290238778,-7404.37884545,0.00027317,2]
[341032556,1730290238788,-99.67757669,0.00027397,5]
[341032557,1730290238801,-407.94237186,0.00027397,5]
[341032558,1730290238810,-559.06398762,0.00027397,5]
[341032559,1730290238821,-504.65123054,0.00027397,5]
[341032560,1730290238831,-502.96580877,0.00027397,5]
[341032561,1730290238842,-526.77103737,0.00027397,5]
[341032562,1730290238852,-505.91524347,0.00027397,5]
[341032563,1730290238861,-508.70297176,0.00027397,5]
[341032564,1730290238871,-502.83189425,0.00027397,5]
[341032565,1730290238881,-502.11,0.00027397,5]
[341032566,1730290238891,-505.65210609,0.00027397,5]
[341032567,1730290238900,-502.61275584,0.00027397,5]
[341032568,1730290238910,-501.93988864,0.00027397,5]
[341032569,1730290238921,-500.48096013,0.00027397,2]
[341032570,1730290238930,-501.23782326,0.00027397,5]
[341032571,1730290238941,-501.4648291,0.00027397,5]
[341032572,1730290238950,-501.73030376,0.00027397,5]
[341032573,1730290238960,-243.37496595,0.00027397,5]
[341032574,1730290238970,-503.50772795,0.00027397,5]
[341032575,1730290238984,-471.38913206,0.00027397,5]
[341032576,1730290238994,-500.0,0.00027397,5]
[341032577,1730290239004,-245.65496158,0.00027397,5]
[341032582,1730290240654,-260.71435898,0.00027397,5]
[341032583,1730290240664,-503.493079,0.00027397,5]
[341032584,1730290240674,-514.67406006,0.00027397,5]
[341032585,1730290240684,-507.18812014,0.00027397,5]
[341032586,1730290240693,-501.399126,0.00027397,5]
[341032587,1730290240703,-514.2255054,0.00027397,5]
[341032588,1730290240713,-368.9986818,0.00027397,5]
[341032589,1730290240726,-149.73635812,0.00027397,5]
[341032590,1730290240735,-503.3831792,0.00027397,5]
[341032591,1730290240745,-317.96265972,0.00027397,5]
[341032592,1730290240755,-500.0,0.00027397,5]
[341032593,1730290240768,-500.0,0.00027397,5]
[341032594,1730290240778,-500.0,0.00027397,5]
[341032595,1730290240787,-500.0,0.00027397,5]
[341032596,1730290240797,-503.69009511,0.00027397,5]
[341032597,1730290240807,-506.75641628,0.00027397,5]
[341032598,1730290240817,-441.37225626,0.00027397,5]
[341032599,1730290240826,-504.15072361,0.00027397,5]
[341032600,1730290240837,-500.0,0.00027397,2]
[341032601,1730290240848,-196.77494408,0.00027397,5]
[341032602,1730290240865,-500.0,0.00027397,5]
[341032603,1730290240874,-229.08400955,0.00027397,3]
[341032604,1730290240884,-500.0,0.00027422,5]
[341032605,1730290240894,-500.0,0.00027422,2]
[341032606,1730290240904,-500.0,0.00027533,5]
[341032607,1730290240914,-160.08903222,0.00027533,5]
[341032608,1730290240925,-500.0,0.00027533,5]
[341032609,1730290240934,-500.0,0.00027671,5]
[341032610,1730290240944,-500.0,0.00027945,5]
[341032611,1730290240954,-500.0,0.00028219,5]
[341032612,1730290240964,-500.0,0.00028493,5]
[341032613,1730290240974,-500.0,0.00028767,5]
[341032614,1730290240986,-500.0,0.00029041,5]
[341032615,1730290240996,-500.0,0.00029315,5]
[341032616,1730290241005,-500.0,0.00029589,5]
[341032617,1730290241015,-500.0,0.00029863,5]
[341032618,1730290241026,-150.0,0.0003,2]
[341032619,1730290241035,-1211.6365575,0.0003,3]
[341032620,1730290241044,-500.0,0.000301,5]
[341032621,1730290241054,-500.0,0.000301,5]
[341032622,1730290241066,-510.78498316,0.00030136,5]
[341032623,1730290241076,-165.677366,0.00030374,2]
[341032624,1730290241085,-1211.87881214,0.000318,3]
[341032625,1730290241095,-505.43730647,0.00032449,12]
[341032626,1730290241105,-232.29059646,0.00032876,2]
[341032627,1730290241118,-267.70940354,0.00032876,2]
[341032628,1730290241128,-132.15686046,0.00032877,120]
[341032738,1730290246508,-2874.44,0.00026391,2]
[341032740,1730290246562,-340.57871264,0.00026391,2]
[341032742,1730290246572,-500.0,0.00027422,5]
[341032744,1730290246581,-500.0,0.00027422,5]
[341032746,1730290246592,-66.92755854,0.00032877,120]
[341032748,1730290246601,-1000.0,0.00032902,5]
[341032750,1730290246613,-1000.0,0.00032902,2]
[341032753,1730290246624,-1000.0,0.00032902,5]
[341032755,1730290246634,-1000.0,0.00032902,5]
[341032757,1730290246644,-163.0,0.00033,2]
[341032758,1730290246654,-1000.0,0.00033013,5]
[341032760,1730290246665,-609.49372882,0.00033013,5]
[341033124,1730290505641,165.677366,0.00013973,2]
[341033125,1730290545208,273.37336231,0.00020113,2]
[341033126,1730290553096,273.37336231,0.00020113,2]
[341033127,1730290561672,273.37336231,0.00020113,2]
[341033128,1730290569611,273.37336231,0.00020113,2]
[341033129,1730290578285,273.37336231,0.00020113,2]
[341033130,1730290593783,273.37336231,0.00020113,2]
[341033131,1730290602126,273.37336231,0.00020113,2]
[341033132,1730290611276,273.37336231,0.00020113,2]
[341033133,1730290619146,273.37336231,0.00020113,2]
[341033134,1730290627206,273.37336231,0.00020113,2]
[341033135,1730290635104,273.37336231,0.00020113,2]
[341033136,1730290643753,273.37336231,0.00020113,2]
[341033137,1730290651637,273.37336231,0.00020113,2]
[341033138,1730290660383,273.37336231,0.00020113,2]
[341033139,1730290668113,546.74672462,0.00020113,2]
[341033140,1730290676389,273.37336231,0.00020113,2]
[341033141,1730290684737,273.37336231,0.00020113,2]
[341033142,1730290692817,546.74672462,0.00020113,2]
[341033143,1730290701174,273.37336231,0.00020113,2]
[341033144,1730290709779,273.37336231,0.00020113,2]
[341033145,1730290717633,273.37336231,0.00020113,2]
[341033146,1730290726194,273.37336231,0.00020113,2]
[341033147,1730290751400,273.37336231,0.00020113,2]
[341033148,1730290759281,273.37336231,0.00020113,2]
[341033149,1730290767787,273.37336231,0.00020113,2]
[341033150,1730290776285,273.37336231,0.00020113,2]
[341033151,1730290784385,273.37336231,0.00020113,2]
[341033152,1730290792248,273.37336231,0.00020113,2]
[341033153,1730290801420,273.37336231,0.00020113,2]
[341033158,1730290817257,273.37336231,0.00020113,2]
[341033159,1730290825764,546.74672462,0.00020113,2]
[341033160,1730290833812,273.37336231,0.00020113,2]
[341033161,1730290842841,273.37336231,0.00020113,2]
[341033162,1730290851194,273.37336231,0.00020113,2]
[341033163,1730290859030,273.37336231,0.00020113,2]
[341033164,1730290866914,273.37336231,0.00020113,2]
[341033165,1730290874966,273.37336231,0.00020113,2]
[341033166,1730290897589,273.37336231,0.00020113,2]
[341033167,1730290906546,273.37336231,0.00020113,2]
[341033168,1730290914592,546.74672462,0.00020113,2]
[341033169,1730290923170,546.74672462,0.00020113,2]
[341033170,1730290932147,273.37336231,0.00020113,2]
[341033171,1730290940297,273.37336231,0.00020113,2]
[341033172,1730290948569,546.74672462,0.00020113,2]
[341033173,1730290956436,546.74672462,0.00020113,2]
[341033174,1730290964444,273.37336231,0.00020113,2]
[341033175,1730290972299,273.37336231,0.00020113,2]
[341033176,1730290995264,273.37336231,0.00020113,2]
[341033177,1730291003217,273.37336231,0.00020113,2]
[341033178,1730291011448,273.37336231,0.00020113,2]
[341033179,1730291019327,273.37336231,0.00020113,2]
[341033180,1730291027977,273.37336231,0.00020113,2]
[341033181,1730291035802,273.37336231,0.00020113,2]
[341033182,1730291043648,273.37336231,0.00020113,2]
[341033183,1730291052273,273.37336231,0.00020113,2]
[341033184,1730291060393,273.37336231,0.00020113,2]
[341033185,1730291068199,273.37336231,0.00020113,2]
[341033186,1730291076316,273.37336231,0.00020113,2]
[341033187,1730291091527,273.37336231,0.00020113,2]
[341033188,1730291091848,193.557869,0.00013973,2]
[341033190,1730291099426,546.74672462,0.00020113,2]
[341033191,1730291108011,273.37336231,0.00020113,2]
[341033195,1730291116444,273.37336231,0.00020113,2]
[341033196,1730291125133,273.37336231,0.00020113,2]
[341033198,1730291133892,273.37336231,0.00020113,2]
[341033199,1730291149681,273.37336231,0.00020113,2]
[341033200,1730291165913,273.37336231,0.00020113,2]
[341033201,1730291181533,273.37336231,0.00020113,2]
[341033202,1730291197433,273.37336231,0.00020113,2]
[341033204,1730291212891,273.37336231,0.00020113,2]
[341033205,1730291229234,273.37336231,0.00020113,2]
[341033206,1730291244609,273.37336231,0.00020113,2]
[341033207,1730291259881,273.37336231,0.00020113,2]
[341033208,1730291275059,273.37336231,0.00020113,2]
[341033210,1730291306239,546.74672462,0.00020113,2]
[341033211,1730291321482,273.37336231,0.00020113,2]
[341033212,1730291327716,21196.53525692,0.0001,2]
[341033213,1730291336793,273.37336231,0.00020113,2]
[341033214,1730291358127,-1050.36630974,0.00021,2]
[341033215,1730291381307,273.37336231,0.00020113,2]
[341033220,1730291396667,273.37336231,0.00020113,2]
[341033224,1730291411968,273.37336231,0.00020113,2]
[341033239,1730291432788,-577.30368926,0.00021,2]
[341033240,1730291432798,-386.83465892,0.00023419,2]
[341033241,1730291432841,-2521.95344477,0.00023419,2]
[341033242,1730291432853,-382.77666951,0.00023419,2]
[341033243,1730291432865,-3000.0,0.00023419,2]
[341033244,1730291432874,-170.84309394,0.00024023,2]
[341033245,1730291432885,-300.0,0.00024123,2]
[341033246,1730291432895,-300.0,0.00024123,2]
[341033247,1730291432905,-9636.85293495,0.00024124,2]
[341033248,1730291432919,-19568.0703882,0.00024124,2]
[341033259,1730291438773,-5102.69450597,0.00024124,2]
[341033260,1730291438782,-170.84309394,0.00024124,2]
[341033261,1730291438793,-165.677366,0.00024224,2]
[341033262,1730291438804,-420.0,0.00026535,2]
[341033263,1730291438813,-500.0,0.00027397,5]
[341033264,1730291438825,-500.0,0.00027671,5]
[341033265,1730291438836,-500.0,0.00027945,5]
[341033266,1730291438846,-150.0,0.0003,2]
[341033267,1730291438864,-975.92271551,0.0003,2]
[341033268,1730291438878,-459.6594009,0.0003,2]
[341033269,1730291438887,-173.1246715,0.00030687,2]
[341033270,1730291438897,-161.625422,0.00030786,2]
[341033271,1730291438908,-296.5500426,0.0003099,2]
[341033272,1730291438919,-2098.4499574,0.0003099,2]
[341033273,1730291438929,-7582.48689878,0.00031018,2]
[341033274,1730291438941,-4622.10867192,0.00031018,2]
[341033275,1730291438950,-161.625422,0.00031187,2]
[341033276,1730291438959,-161.625422,0.00031588,2]
[341033277,1730291438968,-161.625422,0.00031989,2]
[341033279,1730291438979,-161.625422,0.0003239,2]
[341033281,1730291438989,-5092.1026895,0.00032583,2]
[341033283,1730291438999,-5092.1026896,0.0003275,2]
[341033284,1730291439008,-199.084419,0.00032877,120]
[341033285,1730291439017,-153.11958292,0.00033013,5]
[341033286,1730291439027,-423.9227146,0.00034243,30]
[341033287,1730291439040,-150.0,0.00034243,14]
[341033288,1730291439049,-150.0,0.00034243,14]
[341033289,1730291439058,-200.0,0.00034243,14]
[341033290,1730291439067,-3002.28331359,0.00034243,30]
[341033291,1730291439077,-165.677366,0.00034475,2]
[341033292,1730291439087,-3960.61647906,0.00035,2]
[341033293,1730291439211,-210.01,0.000351,7]
[341033294,1730291439247,-1612.0,0.00035237,30]
[341033295,1730291439256,-158.58,0.00035889,3]
[341033296,1730291439266,-475.76,0.00035889,3]
[341033297,1730291439275,-898.86,0.00035889,3]
[341033298,1730291439290,-937.86,0.0003589,10]
[341033299,1730291439299,-781.55,0.0003589,10]
[341033300,1730291439309,-651.29,0.0003589,10]
[341033301,1730291439318,-500.0,0.00035898,2]
[341033302,1730291439327,-506.72487385,0.00035898,5]
[341033303,1730291439336,-500.0,0.00035898,15]
[341033304,1730291439345,-238.54279613,0.00035898,15]
[341033305,1730291439355,-257.37601854,0.00035898,15]
[341033306,1730291439364,-500.0,0.00035898,15]
[341033307,1730291439377,-500.0,0.00035898,15]
[341033308,1730291439387,-602.24843485,0.00035898,15]
[341033309,1730291439397,-500.0,0.00035898,15]
[341033310,1730291439406,-500.0,0.00035898,15]
[341033311,1730291439415,-500.0,0.00035898,15]
[341033312,1730291439425,-500.0,0.00035898,15]
[341033313,1730291439434,-450.0,0.00035898,15]
[341033314,1730291439448,-166.97995729,0.00035898,15]
[341033315,1730291439457,-500.0,0.00035899,2]
[341033316,1730291439467,-500.0,0.00035899,2]
[341033317,1730291439477,-500.0,0.00035899,2]
[341033318,1730291439486,-500.0,0.00035899,2]
[341033319,1730291439495,-500.0,0.00035899,2]
[341033320,1730291439504,-1000.0,0.00035899,120]
[341033321,1730291439514,-19943.13083781,0.000359,2]
[341033322,1730291439525,-24515.5037012,0.000359,30]
[341033330,1730291440855,-206.33296805,0.00028219,5]
[341033331,1730291440865,-232.54701695,0.000359,30]
[341033354,1730291446834,-542.74,0.0003589,10]
[341033355,1730291446844,-229.34545452,0.00035898,5]
[341033359,1730291470456,273.37336231,0.00020113,2]
[341033360,1730291486388,273.37336231,0.00020113,2]
[341033361,1730291502207,273.37336231,0.00020113,2]
[341033362,1730291518226,273.37336231,0.00020113,2]
[341033363,1730291533977,273.37336231,0.00020113,2]
[341033364,1730291699009,161.905035,0.00013973,2]
[341033367,1730291875436,-161.905035,0.00022759,2]
[341033368,1730291875471,-3000.0,0.00025851,2]
[341033369,1730291875506,-164.480358,0.00026166,2]
[341033370,1730291875538,-205.3375328,0.00026312,2]
[341033371,1730291875573,-164.480358,0.00026317,2]
[341033372,1730291875606,-164.480358,0.00026469,2]
[341033373,1730291875640,-164.480358,0.0002662,2]
[341033374,1730291875679,-164.480358,0.00026772,2]
[341033375,1730291941520,-164.480358,0.00026923,2]
[341033376,1730291941552,-164.480358,0.00027075,2]
[341033377,1730291968763,810.3556422,0.00026849,2]
[341033378,1730291995413,-166.666666,0.00025797,2]
[341033379,1730291995446,-0.0443578,0.00026849,2]
[341033380,1730291995479,-164.480358,0.00027226,2]
[341033381,1730291995513,-2881.72416603,0.00027297,2]
[341033382,1730291995547,-164.480358,0.00027378,2]
[341033383,1730291995598,-300.0,0.00027396,2]
[341033384,1730291995636,-300.0,0.00027396,2]
[341033385,1730291995671,-5000.0,0.00027396,2]
[341033386,1730291995706,-500.0,0.00027397,5]
[341033387,1730291995742,-504.68947118,0.00027397,5]
[341033388,1730291995776,-500.0,0.00027397,5]
[341033389,1730291995812,-500.0,0.00027397,5]
[341033390,1730291995846,-500.0,0.00027397,5]
[341033391,1730291995880,-500.0,0.00027397,5]
[341033392,1730291995913,-500.0,0.00027397,5]
[341033393,1730291995947,-503.02457544,0.00027397,5]
[341033394,1730291995981,-500.0,0.00027397,5]
[341033395,1730291996013,-500.0,0.00027397,5]
[341033396,1730291996045,-555.21795667,0.00027397,5]
[341033397,1730291996077,-246.09,0.00027397,5]
[341033398,1730291996109,-500.0,0.00027397,5]
[341033399,1730291996144,-500.0,0.00027397,5]
[341033400,1730291996175,-500.0,0.00027397,5]
[341033401,1730291996212,-581.12283527,0.00027397,5]
[341033402,1730291996246,-503.53819633,0.00027397,5]
[341033403,1730291996280,-503.91347764,0.00027397,5]
[341033404,1730291996312,-385.78738381,0.00027397,5]
[341033405,1730291996345,-502.92575867,0.00027397,5]
[341033406,1730291996379,-503.20280102,0.00027397,5]
[341033407,1730291996525,-500.0,0.00027397,5]
[341033408,1730291996582,-503.16302667,0.00027397,5]
[341033409,1730291996624,-500.0,0.00027397,5]
[341033410,1730291996657,-506.657487,0.00027397,5]
[341033411,1730291996691,-569.93134522,0.00027397,5]
[341033412,1730291996723,-579.28,0.00027397,5]
[341033413,1730291996757,-500.0,0.00027397,5]
[341033414,1730291996790,-503.4641707,0.00027397,5]
[341033415,1730291996822,-500.0,0.00027397,5]
[341033416,1730291996854,-506.70028834,0.00027397,5]
[341033417,1730291996886,-500.0,0.00027397,5]
[341033418,1730291996918,-158.00490659,0.00027397,5]
[341033419,1730291996951,-614.38255291,0.00027397,5]
[341033420,1730291996983,-500.0,0.00027397,5]
[341033421,1730291997017,-500.0,0.00027397,5]
[341033422,1730291997049,-505.70865017,0.00027397,5]
[341033423,1730291997081,-636.58,0.00027397,5]
[341033424,1730291997114,-500.0,0.00027397,5]
[341033425,1730291997145,-500.0,0.00027397,5]
[341033426,1730291997179,-507.25817471,0.00027397,5]
[341033427,1730291997212,-592.2401475,0.00027397,5]
[341033428,1730291997248,-49.72088833,0.00027397,5]
[341033429,1730292026030,150.06154636,0.00016173,2]
[341033430,1730292076092,-250.0,0.0002626,2]
[341033431,1730292076125,-450.27911167,0.00027397,5]
[341033432,1730292076157,-552.97058087,0.00027397,5]
[341033433,1730292076189,-500.0,0.00027397,5]
[341033434,1730292076223,-504.58723721,0.00027397,5]
[341033435,1730292076255,-502.43640953,0.00027397,5]
[341033436,1730292076293,-506.0,0.00027397,5]
[341033437,1730292076328,-618.25661361,0.00027397,5]
[341033438,1730292076360,-410.31283046,0.00027397,5]